Cogmind - Beta 15 @@@ ROGUE MODE // 2025.09.29 @ 18:30:28 Player: The Sun Result: Destroyed by G-47 Trooper with Particle Gun Performance ------------- Evolutions (3) 1500 Regions Visited (6) 1200 Robots Destroyed (77) 385 Value Destroyed (2390) 2390 Prototype IDs (5) 100 Alien Tech Used (0) 0 Bonus (0) 0 TOTAL SCORE: 5575 Bonus ------- None Cogmind --------- Core Integrity 0/700 Matter 164/300 Energy 300/300 System Corruption 5% Temperature Cool (9) Movement Core (200) Ox3 Location -7/Lower Caves Parts ------- > --- POWER (3) -------- (None) > --- PROPULSION (3) --- (None) > --- UTILITY (4) ------ Improved Heat Sink Small Storage Unit Compact Battery > --- WEAPON (3) ------- Great Maul > --- INVENTORY (8) ---- Neutrino Core Neutrino Core Peak State ------------ > --- POWER ------------ Deuterium Engine Light Deuterium Engine > --- PROPULSION ------- Improved Airjet Improved Airjet Improved Airjet > --- UTILITY ---------- Small Storage Unit Compact Battery Advanced Weight Redist. System Improved Shield Generator > --- WEAPON ----------- Enhanced Autogun Gauss Rifle Great Maul > --- INVENTORY -------- Aerolev Unit Improved Heat Sink System Restoration Module Heavy Particle Cannon Grenade Launcher [Rating: 44] Favorites ----------- Power Ion Engine Engine Ion Engine Power Core Light Nuclear Core Propulsion Aluminum Leg Leg Aluminum Leg Hover Unit Improved Airjet Utility Small Storage Unit Device Advanced Weight Redist. System Storage Small Storage Unit Processor Visual Processing Unit Protection Weapon Shielding Weapon EM Pulse Gun Energy Gun EM Pulse Gun Energy Cannon Heavy Particle Cannon Ballistic Gun Heavy Assault Rifle Ballistic Cannon Flak Cannon Launcher Grenade Launcher Impact Weapon Great Maul Piercing Weapon Spear Build | -11 -10 -9 -8 -7 -7 -7 ------- Run | Yrd Mat Mat Mat Fac Low Low Slots Evolved 6 | . . 2 2 2 . . Power 2 | . . 1 . 1 . . Propulsion 1 | . . . 1 . . . Utility 2 | . . 1 . 1 . . Weapon 1 | . . . 1 . . . Parts Attached 74 | 5 2 9 23 27 8 . Power 16 | 1 . 2 5 6 2 . Engine 12 | 1 . 2 4 4 1 . Core 4 | . . . 1 2 1 . Reactor . | . . . . . . . Propulsion 17 | 2 . 1 6 7 1 . Treads . | . . . . . . . Leg 12 | 2 . 1 6 3 . . Wheel . | . . . . . . . Hover 5 | . . . . 4 1 . Flight . | . . . . . . . Utility 19 | 1 1 4 4 7 2 . Device 10 | . . 2 2 5 1 . Storage 4 | 1 . . . 2 1 . Processor 3 | . . 1 2 . . . Hackware . | . . . . . . . Protection 2 | . 1 1 . . . . Artifact . | . . . . . . . Weapon 22 | 1 1 2 8 7 3 . Energy Gun 6 | . 1 1 . 3 1 . Energy Cannon 1 | . . . . . 1 . Ballistic Gun 8 | 1 . 1 3 3 . . Ballistic Cannon 3 | . . . 2 1 . . Launcher 1 | . . . . . 1 . Special Weapon . | . . . . . . . Impact Weapon 2 | . . . 2 . . . Slashing Weapon . | . . . . . . . Piercing Weapon 1 | . . . 1 . . . Special Melee Weapon . | . . . . . . . Unidentified Prototypes 3 | . . . 1 1 1 . Parts Lost 49 | . . 4 19 14 10 2 Power 13 | . . 1 6 3 2 1 Propulsion 15 | . . 1 5 5 3 1 Utility 10 | . . 2 3 3 2 . Weapon 11 | . . . 5 3 3 . Highest Loss Streak 11 | . . 2 11 3 7 2 To Critical Strikes . | . . . . . . . Average Backups 3 | 2 3 2 3 4 3 2 Power . | . 1 . . . . 2 Propulsion . | . . . . . . . Utility . | . . . . . 1 . Weapon 1 | 1 2 2 1 2 . . Tool/Special . | . . . . . . . Unused Backups 6 | . . 1 2 2 . 1 Power 3 | . . . 1 1 . 1 Propulsion 1 | . . . 1 . . . Utility . | . . . . . . . Weapon 2 | . . 1 . 1 . . Tool/Special . | . . . . . . . Average Slot Usage (%) 86 | . 98 90 81 89 82 44 Engine 14 | . 14 19 14 11 12 6 Core 1 | . . . . 4 1 . Leg 14 | . 28 21 17 10 . . Hover 5 | . . . . 8 20 6 Device 10 | . . 4 9 16 13 7 Storage 9 | . 14 11 7 5 14 15 Processor 5 | . . 7 8 6 . . Protection 2 | . 13 4 . . . . Energy Gun 6 | . 12 11 8 3 1 . Ballistic Gun 7 | . 14 11 10 4 2 . Ballistic Cannon 2 | . . . 1 6 . . Impact Weapon 2 | . . . 2 4 7 7 Piercing Weapon 1 | . . . 2 2 . . Peak Build Rating 44 | 5 7 13 26 43 44 19 Average Rating 21 | 4 6 10 16 36 36 18 On Entrance 15 | . 5 7 12 26 40 19 Naked Turns . | . . . . . . . Heaviest Build 47 | 12 15 27 30 33 47 20 Greatest Support 49 | 20 20 20 35 49 36 9 Greatest Overweight (x) 7 | . . 7 6 2 2 6 Average Overweight (x) . | . . . . . . 2 Largest Inventory Capacity 8 | 8 8 8 8 8 8 8 Average Capacity 7 | 7 8 8 7 5 8 8 Most Carried 8 | 5 5 5 7 8 5 2 Average Carried 3 | 2 3 2 3 4 3 2 Final Capacity 8 | 8 8 8 5 8 8 8 Final Carried 6 | 3 4 3 2 6 2 2 Class Distribution -------------------- 47% | Mutant 42% | Scavenger-Mutant 8% | Scavenger-Skirmisher Dominant Class ---------------- Mutant | -10/Materials Scavenger-Mutant | -9/Materials Mutant | -8/Materials Scavenger-Mutant | -7/Factory Mutant | -7/Lower Caves Mutant | -7/Lower Caves Resources | -11 -10 -9 -8 -7 -7 -7 ----------- Run | Yrd Mat Mat Mat Fac Low Low Matter Collected 1993 | 236 49 189 487 839 193 . Remotely . | . . . . . . . Salvage Created 2764 | . 49 437 794 1247 237 . Parts 135 | . 4 29 48 44 10 . Haulers Intercepted 1 | . . . 1 . . . Recyclers Shooed 6 | . . . 1 5 . . Parts Field Recycled . | . . . . . . . Retrieved Matter . | . . . . . . . Parts Self-Destructed 14 | . . . . . 11 3 Prevented . | . . . . . . . Kills | -11 -10 -9 -8 -7 -7 -7 ------- Run | Yrd Mat Mat Mat Fac Low Low Combat Hostiles Destroyed 51 | . 1 10 18 15 7 . Guns 28 | . 1 8 12 6 1 . Cannons 11 | . . . 4 6 1 . AOE 11 | . . 2 2 2 5 . Classes Destroyed 15 | . 1 5 4 5 . . Worker 2 | . . . 1 1 . . Builder 6 | . . . 1 5 . . Tunneler 1 | . . . . 1 . . Hauler 1 | . . . 1 . . . Recycler 8 | . . . 1 7 . . Mechanic 1 | . . . . 1 . . Operator 1 | . . 1 . . . . Watcher 6 | . . 1 1 4 . . Swarmer 11 | . . 3 6 . 2 . Grunt 23 | . 1 2 8 9 3 . Brawler 1 | . . 1 . . . . Duelist 2 | . . . . 1 1 . Sentry 10 | . . 4 4 1 1 . Hunter 2 | . . . . 2 . . Programmer 2 | . . . . 2 . . Best Kill Streak 9 | . 1 6 9 7 4 . Combat Bots Only 6 | . 1 6 5 4 4 . Max Kills in Single Turn 3 | . 1 2 3 2 1 . Gunslinging . | . . . . . . . Exploded 2 | . . 2 2 2 1 . Melee . | . . . . . . . Uniques/NPCs Destroyed . | . . . . . . . Combat | -11 -10 -9 -8 -7 -7 -7 -------- Run | Yrd Mat Mat Mat Fac Low Low Hostile Shots Fired 591 | . 7 62 194 170 144 14 Missed 197 | . 2 18 54 57 59 7 Hits 394 | . 5 44 140 113 85 7 Melee 11 | . . 4 . 3 4 . Projectile 383 | . 5 40 140 110 81 7 Critical Strikes 17 | . . 3 7 5 2 . Part Disruptions 1 | . . . . 1 . . Damage Taken 5702 | . 53 646 2028 1712 1151 112 Core 1322 | . 10 135 466 266 381 64 Absorbed by Shields 195 | . . . . . 195 . Redirected to Shielding 27 | . 3 24 . . . . Core Remaining (%) 69 | 100 96 66 15 . . . Volleys Fired 211 | . 5 37 64 71 34 . Largest 3 | . 2 2 3 2 2 . Hottest 103 | . 60 63 103 82 103 . Shots Fired 388 | . 10 75 123 133 47 . Gun 299 | . 10 75 108 80 26 . Cannon 74 | . . . 15 53 6 . Launcher 15 | . . . . . 15 . Special . | . . . . . . . Kinetic 236 | . 5 37 89 95 10 . Thermal 22 | . . . . . 22 . Explosive 15 | . . . . . 15 . Electromagnetic 115 | . 5 38 34 38 . . Robot Hit Streak 14 | . 4 11 5 7 14 . Robot Miss Streak 8 | . 2 5 8 7 2 . Penetration Max . | . . . . . . . Secondary Targets 5 | . . 1 4 . . . Max Gunslinging Chain 1 | . . 1 1 . . . Shots Hit Robots 253 | . 5 41 68 112 27 . Core Hits 159 | . 2 19 36 85 17 . Critical Kills 2 | . . . 1 1 . . Critical Parts Destroyed 5 | . . . 1 4 . . Critical Strikes 12 | . . . 4 7 1 . Burn 1 | . . . . . 1 . Destroy 2 | . . . 2 . . . Blast 3 | . . . 1 2 . . Smash 6 | . . . 1 5 . . Melee Attacks 18 | . . . 1 16 1 . Impact 18 | . . . 1 16 1 . Slashing . | . . . . . . . Piercing . | . . . . . . . Sneak Attacks 10 | . . . 1 9 . . Combat Hostiles . | . . . . . . . Follow-up Attacks . | . . . . . . . Damage Inflicted 6608 | . 72 679 1505 3363 989 . Guns 2964 | . 67 529 1032 1025 311 . Cannons 1154 | . . . 246 808 100 . Explosions 1198 | . . 145 146 379 528 . Melee 1278 | . . . 77 1151 50 . Ramming 14 | . 5 5 4 . . . Kinetic 3099 | . 28 298 1182 1430 161 . Thermal 920 | . . 145 146 379 250 . Explosive 528 | . . . . . 528 . Electromagnetic 769 | . 39 231 96 403 . . Impact 1278 | . . . 77 1151 50 . Slashing . | . . . . . . . Piercing . | . . . . . . . Highest Corruption 5 | . 3 5 . 5 5 5 Average Corruption 4 | . 2 5 . 4 5 5 Corruption Purged . | . . . . . . . Corruption Blocked . | . . . . . . . Effects 45 | . 1 29 . 1 10 4 Message Errors 14 | . 1 8 . 1 2 2 Matter Fused 11 | . . 6 . . 3 2 Heat Flow Errors 4 | . . 3 . . 1 . Energy Discharges 6 | . . 5 . . 1 . Parts Rejected 1 | . . . . . 1 . Data Loss (minor) 2 | . . 2 . . . . Data Loss (major) 1 | . . 1 . . . . Misfires 3 | . . 2 . . 1 . Alerts 1 | . . 1 . . . . Weapon Failures 2 | . . 1 . . 1 . Overload Shots . | . . . . . . . Overflow Damage 744 | . . 6 77 624 37 . Projectiles 6 | . . . . 6 . . Explosions 65 | . . 6 . 31 28 . Melee 673 | . . . 77 587 9 . Knockbacks 41 | . . . 3 37 1 . Impact 6 | . . . . 5 1 . Kinetic 27 | . . . 2 25 . . Secondary 8 | . . . 1 7 . . Self-Inflicted Damage 171 | . . 36 . 109 26 . Shots 5 | . . 1 . 2 2 . Rammed . | . . . . . . . Targets Rammed 6 | . 1 4 1 . . . Kicked 6 | . 1 4 1 . . . Crushed . | . . . . . . . Highest Temperature 256 | . 12 256 252 143 238 . Average Temperature 59 | . 8 64 65 35 75 . Received Heat Transfer 1985 | . 30 165 1044 420 263 63 Siege Activations . | . . . . . . . Martial Activations . | . . . . . . . Shielding Activations . | . . . . . . . Robots Disrupted . | . . . . . . . Combat Hostiles . | . . . . . . . Robots Corrupted 4 | . . . . 4 . . Combat Hostiles 1 | . . . . 1 . . Parts Fried 17 | . . . 2 15 . . Impact Corruptions 22 | . . . 1 20 1 . Robots Melted . | . . . . . . . Combat Hostiles . | . . . . . . . Parts Melted . | . . . . . . . Heat Transferred 1155 | . . 200 100 300 555 . Parts Sabotaged . | . . . . . . . Parts Stolen 1 | . . . . . 1 . Parts Stripped . | . . . . . . . Power Chain Reactions 4 | . . 1 1 2 . . Alert | -11 -10 -9 -8 -7 -7 -7 ------- Run | Yrd Mat Mat Mat Fac Low Low Maximum Alert Level . | . . . . . . . Low Security (%) 100 | 100 100 100 100 100 . . Level 1 . | . . . . . . . Level 2 . | . . . . . . . Level 3 . | . . . . . . . Level 4 . | . . . . . . . Level 5 . | . . . . . . . High Security . | . . . . . . . Max Security . | . . . . . . . Peak Influence 183 | . 20 118 183 140 . . Initial 63 | . . . . 63 . . Average 44 | . 1 29 52 66 . . Influence Increases 1748 | . 30 335 572 606 205 . Destroy 0b10 Robot/C 1020 | . 20 200 360 300 140 . Destroy 0b10 Robot/NC 130 | . . 10 25 95 . . Destroy Leader 284 | . 10 62 94 98 20 . Successful Hack 30 | . . . . 30 . . Disable Machine 135 | . . 60 45 30 . . Destroy Structure 44 | . . 3 3 38 . . Lose Combat Pursuer 105 | . . . 45 15 45 . Influence Decreases 1748 | . 30 335 431 707 245 . Entered New Map 93 | . . . . 78 15 . Time Decay 1256 | . 30 295 241 490 200 . Lost Part 399 | . . 40 190 139 30 . Squads Dispatched 16 | . 2 1 4 9 . . Investigation 1 | . . . . 1 . . Extermination 2 | . . . . 2 . . Reinforcement 7 | . 2 1 1 3 . . Assault . | . . . . . . . Garrison 6 | . . . 3 3 . . Intercept . | . . . . . . . Searches Triggered . | . . . . . . . Construction Impeded 1 | . . . . 1 . . Haulers Reinforced . | . . . . . . . Active Scanning Responses . | . . . . . . . Cargo Convoy Interrupts 1 | . . . . 1 . . Stealth | -11 -10 -9 -8 -7 -7 -7 --------- Run | Yrd Mat Mat Mat Fac Low Low Distress Signals 6 | . 1 . 4 1 . . Communications Jammed . | . . . . . . . Distress Signals . | . . . . . . . Times Spotted 100 | . 5 17 30 31 13 4 Peak Tracking Total 9 | . 3 5 9 8 5 4 Tactical Retreats 5 | . . 1 1 1 2 . Traps | -11 -10 -9 -8 -7 -7 -7 ------- Run | Yrd Mat Mat Mat Fac Low Low Traps Triggered 3 | . 2 1 . . . . Indirectly . | . . . . . . . Trap Hack Attempts . | . . . . . . . Triggered . | . . . . . . . Disarmed . | . . . . . . . Reprogrammed . | . . . . . . . Reused . | . . . . . . . Traps Extracted . | . . . . . . . Installed . | . . . . . . . Triggered . | . . . . . . . Machines | -11 -10 -9 -8 -7 -7 -7 ---------- Run | Yrd Mat Mat Mat Fac Low Low Machines Disabled 9 | . . 4 3 2 . . Max in Single Turn 2 | . . 1 2 1 . . Machines Repaired . | . . . . . . . Machines Dismantled . | . . . . . . . Machines Sabotaged . | . . . . . . . Overloaded Fab Kills . | . . . . . . . Hacking | -11 -10 -9 -8 -7 -7 -7 --------- Run | Yrd Mat Mat Mat Fac Low Low Machines Accessed 8 | . 2 . . 5 . 1 Terminals 3 | . 2 . . 1 . . Fabricators . | . . . . . . . Repair Stations 1 | . . . . 1 . . Recycling Units 1 | . . . . 1 . . Scanalyzers 1 | . . . . 1 . . Garrison Access 1 | . . . . 1 . . Total Hacks 20 | . 4 . . 15 . 1 Successful 11 | . 3 . . 7 . 1 Failed 9 | . 1 . . 8 . . Catastrophic 4 | . . . . 4 . . Database Lockouts . | . . . . . . . Manual . | . . . . . . . Terminals 6 | . 4 . . 2 . . Fabricators . | . . . . . . . Repair Stations 4 | . . . . 4 . . Recycling Units 4 | . . . . 4 . . Scanalyzers 2 | . . . . 2 . . Garrison Access 3 | . . . . 3 . . Terminal Hacks 5 | . 3 . . 1 . 1 Record 2 | . 1 . . 1 . . Prototype ID Bank 1 | . 1 . . . . . Open Door 1 | . . . . . . 1 Locate Traps 1 | . 1 . . . . . Fabricator Hacks . | . . . . . . . Repair Station Hacks 2 | . . . . 2 . . Scan Component 2 | . . . . 2 . . Recycling Unit Hacks 2 | . . . . 2 . . Report Inventory 1 | . . . . 1 . . Retrieve Components 1 | . . . . 1 . . Scanalyzer 2 | . . . . 2 . . Insert Component 1 | . . . . 1 . . Analyze 1 | . . . . 1 . . Garrison Access Hacks . | . . . . . . . Unauthorized Hacks . | . . . . . . . Terminals . | . . . . . . . Fabricators . | . . . . . . . Repair Stations . | . . . . . . . Recycling Units . | . . . . . . . Scanalyzers . | . . . . . . . Garrison Access . | . . . . . . . Data Cores Recovered . | . . . . . . . Used . | . . . . . . . Hacking Detections 6 | . 2 . . 4 . . Full Trace Events 1 | . . . . 1 . . Feedback Events . | . . . . . . . Feedback Blocked . | . . . . . . . Robot Schematics Acquired . | . . . . . . . Robots Built . | . . . . . . . Authchips . | . . . . . . . Time . | . . . . . . . Total Robot Build Rating . | . . . . . . . Part Schematics Acquired 1 | . . . . 1 . . Parts Built . | . . . . . . . Authchips . | . . . . . . . Time . | . . . . . . . Total Part Build Rating . | . . . . . . . Parts Repaired . | . . . . . . . Time . | . . . . . . . Parts Recycled . | . . . . . . . Recycled Matter . | . . . . . . . Retrieved Matter . | . . . . . . . Retrieved Components 6 | . . . . 6 . . Parts Scanalyzed 1 | . . . . 1 . . Part Schematics Acquired 1 | . . . . 1 . . Parts Damaged 1 | . . . . 1 . . Bothacking | -11 -10 -9 -8 -7 -7 -7 ------------ Run | Yrd Mat Mat Mat Fac Low Low Used RIF Installer . | . . . . . . . Robots Hacked . | . . . . . . . Non-combat . | . . . . . . . Combat . | . . . . . . . Robot Hacks Applied . | . . . . . . . Relay Couplers Released . | . . . . . . . Fabnet Peak Effective % . | . . . . . . . Robots Rewired . | . . . . . . . Allies Hacked . | . . . . . . . Hacks Repelled . | . . . . . . . Allies | -11 -10 -9 -8 -7 -7 -7 -------- Run | Yrd Mat Mat Mat Fac Low Low Total Allies . | . . . . . . . Largest Group . | . . . . . . . Highest-Rated Group . | . . . . . . . Highest-Rated Ally . | . . . . . . . Total Orders . | . . . . . . . Ally Attacks . | . . . . . . . Total Damage . | . . . . . . . Kills . | . . . . . . . Allies Corrupted . | . . . . . . . Allies Melted . | . . . . . . . Intel | -11 -10 -9 -8 -7 -7 -7 ------- Run | Yrd Mat Mat Mat Fac Low Low Active Infowar (turns) 2544 | . . 765 961 818 . . Optics 2088 | . . 749 521 818 . . Terrain 1306 | . . 482 824 . . . ECM 16 | . . 16 . . . . Robot Analysis Total . | . . . . . . . Derelict Logs Recovered 2 | . . . . . 1 1 Drone Launches . | . . . . . . . Drone Recoveries . | . . . . . . . Exploration | -11 -10 -9 -8 -7 -7 -7 ------------- Run | Yrd Mat Mat Mat Fac Low Low Turns Passed 4489 | 96 358 1125 980 1289 513 128 Spaces Moved 3097 | 77 281 563 423 1184 495 74 Core 42 | 12 . 5 4 20 . 1 Treads . | . . . . . . . Legs 1738 | 65 281 558 419 415 . . Wheels . | . . . . . . . Hover 1317 | . . . . 749 495 73 Flight . | . . . . . . . Fastest Speed 42 | 50 120 120 120 42 42 170 Average Speed 116 | 109 120 174 178 77 80 172 Slowest Speed 400 | 120 120 400 350 190 170 350 Overloaded Moves . | . . . . . . . Propulsion Burnouts . | . . . . . . . Robots Hopped . | . . . . . . . Potential Cave-ins . | . . . . . . . Cave-ins Triggered . | . . . . . . . Exploration Rate (%) 34 | 5 53 30 44 28 61 21 Regions Visited 6 Branch Regions 2 Pre-discovered Areas 1 | . . . . . 1 . Known Exits Taken . | . . . . . . . Unknown Exits Taken 6 | 1 1 1 1 1 1 . Scrap Searched . | . . . . . . . Spaces Dug . | . . . . . . . Terrain Destroyed 92 | . . 2 3 36 51 . Melee . | . . . . . . . Projectile 5 | . . . 3 2 . . AOE 87 | . . 2 . 34 51 . Terrain Rammed . | . . . . . . . Walls Destroyed . | . . . . . . . Machines Disabled . | . . . . . . . Actions | -11 -10 -9 -8 -7 -7 -7 --------- Run | Yrd Mat Mat Mat Fac Low Low Total 3586 | 89 291 628 546 1399 559 74 Wait 59 | . . 1 . 49 9 . Move 3091 | 76 280 562 422 1183 494 74 Hop . | . . . . . . . Pick Up 84 | 8 3 10 24 34 5 . Fast Attach . | . . . . . . . Attach 67 | 5 2 9 25 17 9 . Detach 7 | . . . 5 1 1 . Swap 23 | . . 3 . 14 6 . Drop 20 | . . 2 4 14 . . Fire 211 | . 5 37 64 71 34 . Melee 18 | . . . 1 16 1 . Ram . | . . . . . . . Kick 6 | . 1 4 1 . . . Crush . | . . . . . . . Escape Stasis . | . . . . . . . Rewire . | . . . . . . . Trap . | . . . . . . . Miscellaneous . | . . . . . . . Route ------- -11/Scrapyard -10/Materials (discovered 2 exits: [*Mat x2]) -9/Materials -8/Materials -7/Factory -7/Lower Caves -7/Lower Caves (discovered 1 exit: Zio) History --------- Turn | Location | Event 10 | -11/Scrapyard | Discovered new exit (range 16) 97 | -11/Scrapyard | Entered Materials 98 | -10/Materials | Met a group of wandering Federalists 240 | -10/Materials | Discovered new exit (range 15) 302 | -10/Materials | Build established: Mutant 435 | -10/Materials | Discovered new exit (range 6) 455 | -10/Materials | Entered another Materials area 455 | -9/Materials | Evolved 2 slots: Power x1, Utility x1 1046 | -9/Materials | Discovered new exit (range 11) 1195 | -9/Materials | Build established: Scavenger-Mutant 1580 | -9/Materials | Entered another Materials area 1580 | -8/Materials | Evolved 2 slots: Propulsion x1, Weapon x1 1886 | -8/Materials | Build established: Scavenger-Skirmisher 2076 | -8/Materials | Garrison activated, responded to threat 2103 | -8/Materials | Lost 7 parts (2p1n1u3w) 2334 | -8/Materials | Build established: Mutant 2386 | -8/Materials | Garrison activated, responded to threat 2396 | -8/Materials | Core integrity fell below 50% 2432 | -8/Materials | Core integrity fell below 20% 2453 | -8/Materials | Lost 11 parts (4p3n2u2w) 2537 | -8/Materials | Discovered new exit (range 19) 2560 | -8/Materials | Entered Factory 2560 | -7/Factory | Evolved 2 slots: Power x1, Utility x1 2977 | -7/Factory | Build established: Scavenger-Mutant 3021 | -7/Factory | Garrison activated, responded to threat 3278 | -7/Factory | Lost 3 parts (1p2n) 3409 | -7/Factory | Lost 3 parts (2u1w) 3810 | -7/Factory | Cargo convoy interrupted 3838 | -7/Factory | Discovered new exit (range 10) 3849 | -7/Factory | Entered Lower Caves 3929 | -7/Lower Caves | Spotted B-75 Beast 3999 | -7/Lower Caves | Core integrity fell below 50% 4040 | -7/Lower Caves | Attracted the attention of an 0b10 checkpoint 4214 | -7/Lower Caves | Discovered new exit (range 16) 4301 | -7/Lower Caves | Core integrity fell below 20% 4355 | -7/Lower Caves | Lost 7 parts (1p2n2u2w) 4362 | -7/Lower Caves | Entered another Lower Caves area 4363 | -7/Lower Caves | Encountered a Warlord checkpoint 4391 | -7/Lower Caves | Identified exit to Zion 4431 | -7/Lower Caves | Entered a destroyed Warlord outpost 4467 | -7/Lower Caves | Build established: Mutant 4490 | -7/Lower Caves | Destroyed by G-47 Trooper with Particle Gun Last Messages --------------- WW-0JW(S) system terminally corrupted. Acquired derelict log, extracted data. Loading 1 Lower Caves exit... B-48 Gladiator sneak attacks. ZY-JJY(S) system corrupted by crushing effect. LGR|VGTBH GU-C15(S) system terminally corrupted. Connecting with WAR.Sys... Current location identified: Lower Caves >>Open Door Sealed Heavy Doors opened. System corrupted: Matter fused (-8). F18QXHKCB1SL% XG=M==U&D6 Imp. Airjet destroyed. Deuterium Engine destroyed. Map ----- +----------------------------------------------------+ | ???????????????????????????????????????????# ### | | ???????????????????????????????????? ?????# ## | | ??????????????????????????????????? ??### ## | | ???????????????????????????????????? ?# | | ????????????????????????????????????# ## | | ?????????????????????????????????????# | | ????????????????????????????????????##? | | ????????????????????????????????????# ???# | | ????????????????????????????????????# ???# | | ??????????????????????????????????### ##### | | ??????????????????????????????????# | | ??????????????????????????????????# | | ??????????????????????????????????# # ## #X | | ??????????????????????????????????? ### ### | | ?????????????????????????????????## ##"# #!# | | ?????????????????????????????##### #"" # ? | | ????????????????????????????## ## #" ## #? | | ???????????????????????????## #" # ## | | ??????????????????????###?## #" # | | ?????????????????????## ## #" | | ?????????????????????# ## | | ?????????????????????# g #?#" "" | | ?????????????????????# g #?#"" " | | ???????????????????### ### ### "" | | ???????????????????# ##?# #### | | ???????????????????# @ b #??# ##### "" " | | ???????????????????# ### #??# ### # ""# | | ??????????????????# #####?# #?# ## ###### | | ??????????????? ????????# ## | | ?????????????# ??????????## ## | | ?????????????## ?????????????# ## ########### | | ?????????????????????????????## ?????????? | | ??????????????????????????????## ####????????? | | ???????????????????????????????#######???????????? | | ?????????????????????????????????????????????????? | | ?????????????????????????????????????????????????? | | ?????????????????????????????????????????????????? | | ?????????????????????????????????????????????????? | | ?????????????????????????????????????????????????? | | ?????????????????????????????????????????????????? | | ?????????????????????????????????????????????????? | | ?????????????????????????????????????????????????? | | ?????????????????????????????????????????????????? | | ?????????????????????????????????????????????????? | | ?????????????????????????????????????????????????? | | ?????????????????????????????????????????????????? | | ?????????????????????????????????????????????????? | | ?????????????????????????????????????????????????? | | ?????????????????????????????????????????????????? | | | +----------------------------------------------------+ Best States ------------- Heat Dissipation 48 Energy Generation 39 Energy Capacity 880 Matter Stores 300 Matter Capacity 300 Sight Range 20 Terrain Scan Range 14 Terrain Scan Density 10 ECM Strength 1 Additional Mass Support 9 Armor Coverage 150 Weapon Shielding 33 Evasion (%) 56 Melee Accuracy 5 Recoil Reduction 4 Item Schematics ----------------- Spear | -7/Factory | Scanalyzed Robot Schematics ------------------ None Fabricated ------------ Nothing Repaired ---------- Nothing Alien Tech Used ----------------- None Achievements -------------- Hey, That's Mine! Maybe Next Time I'll Detach My Launcher Challenges ------------ None Game ------ Seed ImprinterNavigationPurifier Manual? 0 Play Time 00:39:49 Cumulative 6.7 hours Start 2025.09.29 @ 17:08:38 End 2025.09.29 @ 18:30:28 Sessions 1 Manual Loads 0 Difficulty Rogue Special Mode None Game No. 18 Rogue 18 Adventurer 0 Explorer 0 Win Type - Total 0 Types 0/0/0/0/0/0/0/0/0/0 Lore% 6 Gallery% 13 Achievement% 13 Wizard Run 0 Options --------- Layout 1 ASCII 0 Keyboard 0 Movement Arrows Keybinds 0 Fullscreen 1 Font 32/SmallcapsGlow Map View 50x35 Zoom Use 0% Tactical HUD 0 Map Filters NONE Filters NONE Steam 1 RUN: c944894d-a52f-4153-be5e-de3ff77829ed